bitfinex/quotes_SOLUSD_20240725
["timestamp","ask_amount","ask_price","bid_price","bid_amount"]
[1721947104130,26.45454126,172.4,172.33,0.8114915]
[1721947104131,5.8018,172.36,172.33,0.8114915]
[1721947105038,5.8021,172.35,172.33,0.8114915]
[1721947106143,5.8024,172.34,172.33,0.8114915]
[1721947110737,50.8024,172.34,172.33,0.8114915]
[1721947112563,5.8024,172.34,172.33,0.8114915]
[1721947112772,5.8022,172.35,172.33,0.8114915]
[1721947113060,6.45454126,172.4,172.33,0.8114915]
[1721947113061,5.8017,172.37,172.33,0.8114915]
[1721947114557,5.8018,172.36,172.33,0.8114915]
[1721947114744,5.8024,172.34,172.33,0.8114915]
[1721947117365,5.8022,172.35,172.33,0.8114915]
[1721947121150,5.8024,172.34,172.33,0.8114915]
[1721947124166,17.4624,172.34,172.33,0.8114915]
[1721947124862,62.4624,172.34,172.33,0.8114915]
[1721947125669,50.8024,172.34,172.33,0.8114915]
[1721947125859,62.4624,172.34,172.33,0.8114915]
[1721947126363,50.8024,172.34,172.33,0.8114915]
[1721947132456,5.8024,172.35,172.33,0.8114915]
[1721947133582,14.5024,172.39,172.33,0.8114915]
[1721947133583,5.8017,172.37,172.33,0.8114915]
[1721947134476,5.8018,172.36,172.33,0.8114915]
[1721947135377,5.8011,172.39,172.33,0.8114915]
[1721947135691,5.8,172.42,172.37,5.8013]
[1721947135863,5.8007,172.4,172.36,6.3576]
[1721947136183,5.8009,172.39,172.36,6.3576]
[1721947136354,5.8012,172.38,172.36,6.3576]
[1721947136554,5.8014,172.37,172.36,6.3576]
[1721947137991,5.8021,172.35,172.34,16.4292]
[1721947141087,31.9524,172.39,172.33,0.8114915]
[1721947141289,5.8024,172.34,172.33,0.8114915]
[1721947145781,5.8022,172.35,172.33,0.8114915]
[1721947145980,43.33,172.43,172.33,0.8114915]
[1721947145981,25.42128572,172.43,172.33,0.8114915]
[1721947146181,5.7998,172.42,172.37,5.8011]
[1721947146382,31.0639406,172.46,172.37,14.5028]
[1721947146605,14.4977,172.45,172.35,5.802]
[1721947146778,31.9477,172.45,172.33,0.8114915]
[1721947147188,5.8005,172.4,172.35,5.8021]
[1721947148278,5.8005,172.4,172.36,5.8017]
[1721947148481,7.7339406,172.46,172.38,6.1666]
[1721947148700,5.798,172.48,172.43,5.7994]
[1721947149615,5.7981,172.47,172.41,21.45973115]
[1721947149788,5.7981,172.47,172.42,5.7996]
[1721947149985,6.56933544,172.51,172.46,16.1519]
[1721947150312,394.9877,172.57,172.49,5.7973]
[1721947150492,5.796,172.54,172.48,20.292]
[1721947150697,5.7961,172.53,172.48,20.292]
[1721947151284,5.7961,172.53,172.48,14.4943]
[1721947151513,31.9377,172.57,172.47,6.5922]
[1721947151514,5.7972,172.5,172.47,6.5922]
[1721947151706,31.9393,172.55,172.47,6.5922]
[1721947152395,5.7971,172.5,172.47,6.5922]
[1721947152586,5.7968,172.51,172.47,6.5922]
[1721947152903,21.05533544,172.58,172.47,6.5922]
[1721947153204,6.56933544,172.58,172.49,20.2902]
[1721947153509,5.7958,172.54,172.49,20.2902]
[1721947153883,23.33,172.59,172.5,5.797]
[1721947154788,5.7956,172.55,172.5,5.797]
[1721947155393,5.7956,172.55,172.47,6.5922]
[1721947155394,45.0,172.54,172.47,6.5922]
[1721947155592,5.7977,172.49,172.47,6.5922]
[1721947155889,45.0,172.54,172.47,6.5922]
[1721947156113,17.45,172.56,172.47,6.5922]
[1721947156114,45.0,172.55,172.47,6.5922]
[1721947156322,5.7968,172.51,172.47,6.5922]
[1721947156703,5.7971,172.5,172.47,6.5922]
[1721947157423,5.7967,172.51,172.47,6.5922]
[1721947158013,5.7971,172.5,172.47,6.5922]
[1721947159322,31.9409,172.53,172.47,6.5922]
[1721947159528,45.0,172.52,172.47,6.5922]
[1721947160707,5.7977,172.48,172.47,6.5922]
[1721947161399,5.7975,172.49,172.47,6.5922]
[1721947161600,5.7977,172.48,172.47,6.5922]
[1721947162021,5.7975,172.49,172.47,6.5922]
[1721947162722,5.7977,172.48,172.47,6.5922]
[1721947163642,5.7974,172.49,172.47,6.5922]
[1721947165103,5.7991,172.44,172.43,6.5551]
[1721947165409,6.01981429,172.51,172.43,6.5551]
[1721947165737,5.7975,172.49,172.44,5.7991]
[1721947166035,5.7978,172.48,172.43,12.3544]
[1721947166230,82.96213575,172.52,172.43,6.5551]
[1721947166533,31.9433,172.5,172.43,6.5551]
[1721947166826,45.0,172.49,172.43,6.5551]
[1721947167328,5.7991,172.44,172.43,6.5551]
[1721947167541,5.7994,172.43,172.42,16.6576]
[1721947169011,31.9451,172.48,172.42,16.6576]
[1721947169012,5.7991,172.44,172.42,16.6576]
[1721947169808,5.7994,172.43,172.42,16.6576]
[1721947171922,5.7999,172.42,172.39,6.3659]
[1721947172118,5.8002,172.41,172.39,6.3659]
[1721947173110,5.8004,172.4,172.39,6.3659]
[1721947173360,5.8011,172.38,172.37,16.0588]
[1721947173849,5.8011,172.38,172.35,6.5518]
[1721947174239,37.8283,172.44,172.35,12.3538]
[1721947174440,5.8004,172.4,172.36,5.8017]
[1721947175141,5.8004,172.4,172.35,12.3538]
[1721947176459,5.8011,172.38,172.35,6.5518]
[1721947176665,31.9483,172.44,172.35,6.5518]
[1721947176960,62.45,172.43,172.35,6.5518]
[1721947177137,5.8012,172.38,172.35,6.5518]
[1721947177667,62.45,172.43,172.35,6.5518]
[1721947177838,5.8011,172.39,172.35,6.5518]
[1721947178165,5.8005,172.4,172.35,6.5518]
[1721947178353,43.5,172.43,172.35,6.5518]
[1721947178542,43.5,172.43,172.36,5.8017]
[1721947178543,5.8001,172.41,172.36,5.8017]
[1721947179048,5.8005,172.4,172.35,26.8587]
[1721947179374,5.8008,172.39,172.35,26.8587]
[1721947179734,5.8003,172.41,172.36,5.8017]
[1721947179943,43.5,172.43,172.36,5.8017]
[1721947180148,43.5,172.43,172.35,26.8585]
[1721947180440,5.801,172.39,172.35,21.0566]
[1721947181546,5.8011,172.38,172.35,21.0566]
[1721947182057,5.8008,172.39,172.35,21.0566]
[1721947183463,5.8005,172.4,172.35,26.8587]
[1721947183964,5.8002,172.41,172.36,5.8016]
[1721947184839,5.8005,172.4,172.36,5.8016]
[1721947185340,5.8005,172.4,172.35,26.8587]
[1721947185659,5.8005,172.4,172.36,5.8017]
[1721947185837,43.5,172.43,172.35,21.0566]
[1721947186165,5.7998,172.42,172.37,5.8013]
[1721947186367,31.9473,172.45,172.35,26.8584]
[1721947186660,5.8011,172.38,172.35,6.5518]
[1721947186856,5.8014,172.37,172.35,6.5518]
[1721947187048,5.8013,172.38,172.35,6.5518]
[1721947190064,5.8008,172.39,172.35,6.5518]
[1721947190362,5.8015,172.37,172.35,6.5518]
[1721947191364,5.8012,172.38,172.35,6.5518]
[1721947192279,17.4612,172.38,172.35,6.5518]
[1721947193767,11.66,172.38,172.35,6.5518]
[1721947194267,6.02252127,172.45,172.35,18.2118]
[1721947194444,14.97108518,172.49,172.38,11.66]
[1721947194651,5.7994,172.43,172.39,5.8007]
[1721947194870,17.4594,172.43,172.39,5.8007]
[1721947196156,17.4594,172.43,172.38,31.9631]
[1721947196946,11.66,172.42,172.38,20.3031]
[1721947197153,5.7999,172.42,172.38,20.3031]
[1721947197360,17.4599,172.42,172.38,20.3031]
[1721947197760,11.66,172.43,172.39,5.8007]
[1721947197959,17.4588,172.45,172.4,5.8004]
[1721947199146,0.09723394,172.48,172.4,5.8004]
[1721947199147,5.7985,172.46,172.42,11.66]
[1721947199352,5.7981,172.47,172.43,6.4665]
[1721947200482,5.7984,172.46,172.43,6.4665]
[1721947200663,5.7988,172.45,172.43,6.4665]
[1721947201753,5.7985,172.46,172.43,6.4665]
[1721947203262,5.7997,172.42,172.41,15.6966]
[1721947203456,5.7992,172.44,172.41,15.6966]
[1721947203659,6.4721015,172.51,172.41,15.6966]
[1721947203876,5.7978,172.48,172.44,5.799]
[1721947204061,5.7975,172.49,172.44,5.799]
[1721947204266,5.7969,172.51,172.43,15.65749104]
[1721947204461,14.4912,172.52,172.43,14.4979]
[1721947204665,5.7981,172.47,172.43,20.2971]
[1721947205075,14.4933,172.5,172.41,15.6966]
[1721947205269,5.7995,172.43,172.41,15.6966]
[1721947205579,5.7997,172.42,172.41,15.6966]
[1721947205783,5.8004,172.4,172.39,6.4015]
[1721947205954,31.9483,172.44,172.37,15.8641]
[1721947206154,45.0,172.43,172.37,15.8641]
[1721947206355,5.8008,172.39,172.37,15.8641]
[1721947207278,5.8005,172.4,172.37,15.8641]
[1721947207576,5.8001,172.41,172.37,15.8641]
[1721947209567,5.8001,172.41,172.37,21.6655]
[1721947209974,5.8001,172.41,172.37,15.8641]
[1721947210362,5.8004,172.4,172.37,15.8641]
[1721947210562,5.8009,172.39,172.37,15.8641]
[1721947210763,5.8011,172.38,172.37,15.8641]
[1721947211574,5.8008,172.39,172.37,15.8641]
[1721947215263,5.7998,172.42,172.37,21.6655]
[1721947215491,7.57400431,172.49,172.38,1.16007176]
[1721947215695,7.57400431,172.49,172.37,15.8641]
[1721947215988,5.7981,172.47,172.43,6.6024]
[1721947216194,5.7981,172.47,172.43,12.4018]
[1721947216581,5.7981,172.47,172.43,6.6024]
[1721947217095,14.4931,172.5,172.43,6.6024]
[1721947217096,5.7984,172.46,172.43,6.6024]
[1721947217285,31.9431,172.5,172.43,6.6024]
[1721947218377,5.7988,172.45,172.43,6.6024]
[1721947218586,1.00459568,172.53,172.44,15.2249]
[1721947218792,6.56933544,172.54,172.45,1.15957031]
[1721947218986,5.7965,172.52,172.47,5.798]
[1721947219882,5.7969,172.51,172.45,14.4964]
[1721947220497,5.7969,172.51,172.46,1.15945186]
[1721947220998,5.7969,172.51,172.45,14.4964]
[1721947221197,5.7969,172.51,172.45,20.2948]
[1721947221398,5.7971,172.5,172.45,20.2948]
[1721947222500,5.7971,172.5,172.46,5.7984]
[1721947223204,14.4894,172.54,172.44,15.2249]
[1721947223405,5.7974,172.49,172.44,21.0239]
[1721947223799,5.7977,172.48,172.44,21.0239]
[1721947224002,45.0,172.53,172.44,15.2249]
[1721947224186,5.7987,172.45,172.44,15.2249]
[1721947224386,14.4943,172.49,172.44,15.2249]
[1721947224587,5.7987,172.45,172.44,15.2249]
[1721947225205,14.4943,172.49,172.4,16.3693]
[1721947225206,5.7995,172.43,172.4,16.3693]
[1721947225408,14.4943,172.49,172.4,16.3693]
[1721947225609,5.7988,172.45,172.4,22.1696]
[1721947225992,5.7992,172.44,172.4,16.3693]
[1721947226305,5.7987,172.46,172.4,16.3693]
[1721947226513,23.29,172.5,172.4,45.3707]
[1721947226720,5.7978,172.48,172.44,5.799]
[1721947227014,0.04861697,172.52,172.42,5.7997]
[1721947227015,5.7984,172.46,172.42,5.7997]
[1721947227404,0.04861697,172.52,172.43,5.7994]
[1721947227405,14.4923,172.51,172.43,5.7994]
[1721947227592,5.7978,172.48,172.44,5.799]
[1721947227792,5.7978,172.48,172.43,5.7993]
[1721947230505,5.7982,172.47,172.43,5.7993]
[1721947231509,5.7977,172.49,172.44,1.15969709]
[1721947232613,5.7977,172.49,172.43,14.498]
[1721947232788,5.7977,172.49,172.45,5.7987]
[1721947233228,5.7977,172.49,172.44,5.799]
[1721947233685,5.7977,172.49,172.45,1.15958185]
[1721947234330,5.799,172.45,172.4,22.1694]
[1721947236409,43.79691688,172.53,172.41,14.4995]
[1721947236723,37.7803,172.53,172.42,1.15958742]
[1721947236908,37.7803,172.53,172.41,14.4995]
[1721947237706,5.7978,172.48,172.44,5.799]
[1721947237911,5.7973,172.5,172.45,5.7986]
[1721947238613,424.56110841,172.56,172.45,14.4965]
[1721947238813,5.797,172.51,172.47,5.798]
[1721947239016,5.7964,172.52,172.47,5.798]
[1721947239225,7.60121603,172.58,172.47,22.5013]
[1721947239521,25.0951,172.66,172.56,14.4872]
[1721947239522,19.5744,172.66,172.56,14.4872]
[1721947239736,5.7931,172.62,172.57,6.95352157]
[1721947239906,5.7934,172.61,172.57,1.15882157]
[1721947240221,6.02412281,172.65,172.56,22.5013]
[1721947240397,14.4818,172.64,172.56,22.5013]
[1721947241122,5.7945,172.58,172.56,22.5013]
[1721947241299,5.7947,172.57,172.56,22.5013]
[1721947241493,5.7947,172.57,172.52,41.5961]
[1721947241712,23.29,172.61,172.52,21.3095]
[1721947242021,5.7954,172.55,172.52,21.3095]
[1721947244636,5.7958,172.54,172.52,21.3095]
[1721947245120,14.4849,172.6,172.52,21.3095]
[1721947245304,45.0,172.59,172.52,21.3095]
[1721947245704,5.7951,172.56,172.52,21.3095]
[1721947246007,5.7958,172.54,172.52,21.3095]
[1721947246626,5.7954,172.55,172.52,21.3095]
[1721947247299,5.7958,172.54,172.52,21.3095]
[1721947247825,45.0,172.59,172.52,21.3095]
[1721947248001,5.795,172.57,172.52,27.1058]
[1721947248201,45.0,172.59,172.52,27.1058]
[1721947248202,5.7953,172.56,172.52,21.3095]
[1721947248447,45.0,172.59,172.52,21.3095]
[1721947249040,5.7951,172.56,172.52,21.3095]
[1721947249555,403.79,172.64,172.52,22.46864693]
[1721947249724,403.79,172.64,172.54,5.7954]
[1721947250123,418.2716,172.64,172.55,5.7953]
[1721947250334,5.794,172.6,172.55,5.7953]
[1721947251525,5.7934,172.61,172.57,5.7947]
[1721947252550,5.7931,172.62,172.57,5.7947]
[1721947252926,5.7935,172.61,172.56,20.2826]
[1721947254152,37.7688,172.67,172.57,1.15871827]
[1721947254153,14.4788,172.67,172.57,1.15871827]
[1721947254351,14.4788,172.67,172.56,14.4876]
[1721947254352,5.7914,172.67,172.62,5.7927]
[1721947255045,5.7911,172.68,172.63,5.7926]
[1721947255959,5.7911,172.68,172.64,5.7922]
[1721947257433,14.4703,172.77,172.66,14.4791]
[1721947257757,5.7894,172.73,172.68,5.7908]
[1721947257964,5.7894,172.73,172.69,1.15795866]
[1721947258128,5.7884,172.76,172.69,1.15795866]
[1721947258453,40.74,172.79,172.69,1.15795866]
[1721947258648,40.74,172.79,172.66,1.15793864]
[1721947258951,5.7893,172.74,172.7,14.4753]
[1721947259326,5.7895,172.73,172.67,20.2693]
[1721947259850,5.7895,172.73,172.68,5.7909]
[1721947260351,20.49281232,172.78,172.67,15.63623752]
[1721947260524,5.789,172.74,172.69,5.7904]
[1721947260731,5.789,172.74,172.7,5.7903]
[1721947260952,5.789,172.74,172.68,5.7907]
[1721947261138,5.7893,172.73,172.67,14.4783]
[1721947261339,5.7893,172.73,172.69,5.7906]
[1721947261741,5.7891,172.74,172.69,5.7906]
[1721947262142,5.7895,172.73,172.68,6.94893653]
[1721947262342,5.7895,172.73,172.69,5.7907]
[1721947262643,5.7888,172.75,172.7,14.4758]
[1721947263028,5.789,172.74,172.7,20.2661]
[1721947263329,5.789,172.74,172.7,14.4758]
[1721947264764,20.49311232,172.78,172.67,14.4782]
[1721947265069,5.7902,172.71,172.67,14.4782]
[1721947266857,5.7904,172.7,172.65,27.8442]
[1721947268247,5.7904,172.7,172.66,5.7916]
[1721947268453,5.7904,172.7,172.65,22.0523]
[1721947268454,5.79,172.72,172.65,36.5319]
[1721947269653,5.7888,172.75,172.67,14.4778]
[1721947269853,5.7888,172.75,172.7,5.7903]
[1721947270059,5.7891,172.74,172.69,5.7907]
[1721947271760,5.7894,172.73,172.69,5.7907]
[1721947271960,14.4725,172.75,172.65,22.0523]
[1721947272133,5.791,172.68,172.65,22.0523]
[1721947272551,5.7907,172.69,172.65,22.0523]
[1721947272860,5.7907,172.69,172.65,27.8443]
[1721947273850,14.4759,172.71,172.61,20.276]
[1721947274061,5.7928,172.63,172.6,16.5753]
[1721947274261,37.45,172.69,172.6,16.5753]
[1721947274453,5.7934,172.61,172.6,16.5753]
[1721947274763,5.7934,172.61,172.59,6.4281]
[1721947275068,37.7677,172.68,172.59,6.4281]
[1721947275238,65.0,172.67,172.59,6.4281]
[1721947275642,5.792,172.66,172.6,5.7935]
[1721947275873,45.0,172.67,172.6,1.15862632]
[1721947276040,45.0,172.67,172.62,5.7929]
[1721947276041,5.7914,172.67,172.62,5.7929]
[1721947276238,5.7914,172.67,172.6,14.4836]
[1721947276636,5.7911,172.68,172.63,5.7927]
[1721947276841,5.7904,172.7,172.65,5.7919]
[1721947277262,23.29,172.74,172.64,15.6057]
[1721947277263,5.7901,172.71,172.66,5.7916]
[1721947277466,14.4742,172.73,172.64,15.6057]
[1721947277668,5.7914,172.67,172.64,15.6057]
[1721947279273,5.791,172.69,172.64,15.6057]
[1721947279879,5.7911,172.68,172.64,15.6057]
[1721947280251,5.7915,172.67,172.64,15.6057]
[1721947280550,5.7917,172.66,172.64,15.6057]
[1721947281255,5.7914,172.67,172.62,5.793]
[1721947283078,5.7919,172.66,172.61,20.2765]
[1721947284475,5.7919,172.66,172.62,5.793]
[1721947284978,5.7919,172.66,172.61,20.2765]
[1721947285981,5.792,172.65,172.61,20.2765]
[1721947286383,5.7917,172.66,172.61,20.2765]
[1721947287364,5.7917,172.66,172.62,5.793]
[1721947287566,5.7912,172.68,172.61,14.4832]
[1721947287791,5.7912,172.68,172.61,15.64161877]
[1721947287990,5.7912,172.68,172.64,5.7923]
[1721947288776,5.7912,172.68,172.63,5.7927]
[1721947290092,43.78304423,172.71,172.62,5.793]
[1721947290390,14.4773,172.69,172.6,21.6331]
[1721947290683,45.0,172.68,172.6,21.6331]
[1721947291305,5.7931,172.62,172.6,15.8397]
[1721947292694,14.479,172.67,172.6,15.8397]
[1721947292695,5.7927,172.63,172.6,15.8397]
[1721947293380,50.7932,172.62,172.58,14.4856]
[1721947293697,5.7934,172.61,172.57,5.7946]
[1721947294477,50.7931,172.62,172.57,5.7946]
[1721947296800,50.7931,172.62,172.56,16.0964]
[1721947296801,5.7937,172.6,172.56,16.0964]
[1721947296979,5.7934,172.61,172.56,21.8912]
[1721947297185,45.0,172.6,172.56,16.0964]
[1721947297485,5.7941,172.59,172.56,16.0964]
[1721947297691,5.7937,172.61,172.56,21.8914]
[1721947297874,23.29,172.65,172.57,14.4862]
[1721947298077,5.7929,172.63,172.58,5.7941]
[1721947298297,45.0,172.62,172.58,5.7941]
[1721947298509,50.7931,172.62,172.58,5.7941]
[1721947299586,50.7931,172.62,172.57,20.2808]
[1721947299793,50.7931,172.62,172.56,16.0964]
[1721947299794,5.794,172.6,172.56,16.0964]
[1721947299984,5.794,172.59,172.56,16.0964]
[1721947300600,5.7938,172.6,172.56,16.0964]
[1721947300813,5.7941,172.59,172.56,16.0964]
[1721947307693,5.7941,172.59,172.54,26.8155]
[1721947307894,45.0,172.58,172.51,16.6257]
[1721947308100,5.7956,172.55,172.51,16.6257]
[1721947310400,5.7961,172.53,172.51,16.6257]
[1721947313233,5.7964,172.52,172.51,16.6257]
[1721947313800,5.7961,172.53,172.51,16.6257]
[1721947314712,5.7964,172.52,172.51,16.6257]
[1721947315320,5.7964,172.52,172.49,6.0539]
[1721947316504,5.7961,172.53,172.49,6.0539]
[1721947317407,5.7961,172.53,172.49,11.8512]
[1721947318495,5.7968,172.51,172.47,15.2801]
[1721947318810,5.7971,172.5,172.47,15.2801]
[1721947319019,5.7968,172.51,172.47,15.2801]
[1721947319324,5.7968,172.51,172.47,21.0781]
[1721947319896,5.7968,172.51,172.47,15.2801]
[1721947320295,17.4374,172.49,172.47,15.2801]
[1721947320535,5.7974,172.49,172.47,15.2801]
[1721947320905,17.4374,172.49,172.47,15.2801]
[1721947321903,11.64,172.49,172.47,15.2801]
[1721947322148,5.7976,172.49,172.45,21.0279]
[1721947323409,1.00383169,172.55,172.48,5.7974]
[1721947323630,20.49849335,172.58,172.47,14.4945]
[1721947324032,5.796,172.54,172.49,5.7972]
[1721947324514,5.7951,172.56,172.51,16.4225]
[1721947324713,5.7951,172.56,172.51,36.7107]
[1721947325123,5.7954,172.55,172.51,36.7107]
[1721947325318,5.795,172.57,172.52,5.7964]
[1721947325524,5.7949,172.57,172.52,5.7964]
[1721947325842,5.7951,172.56,172.52,6.95550616]
[1721947326156,5.794,172.6,172.55,5.7953]
[1721947326520,5.7934,172.61,172.57,5.7946]
[1721947326716,380.5,172.63,172.58,21.0908]
[1721947326921,380.5,172.63,172.59,5.7937]
[1721947327430,380.5,172.63,172.6,6.95228734]
[1721947327627,380.5,172.7,172.61,12.4089]
[1721947327848,5.7918,172.66,172.62,1.15841353]
[1721947328046,5.7914,172.67,172.62,6.95141353]
[1721947328848,14.4759,172.71,172.61,6.6157]
[1721947329138,5.7924,172.64,172.61,6.6157]
[1721947330132,5.7921,172.65,172.61,6.6157]
[1721947330652,5.7916,172.67,172.61,7.77420298]
[1721947331256,14.4774,172.69,172.61,6.6157]
[1721947331428,45.0,172.66,172.58,15.2966]
[1721947331821,45.0,172.66,172.6,5.7936]
[1721947332044,45.0,172.66,172.59,5.794]
[1721947332560,5.7927,172.63,172.58,35.5763]
[1721947333723,5.7927,172.63,172.59,5.794]
[1721947335843,5.7918,172.66,172.61,5.7933]
[1721947336058,5.7913,172.68,172.59,1.15843288]
[1721947336364,34.4738,172.73,172.62,20.6402]
[1721947336529,5.7917,172.66,172.62,26.433]
[1721947336734,5.7917,172.66,172.62,20.6402]
[1721947337147,5.7914,172.67,172.62,26.433]
[1721947337653,5.7918,172.66,172.62,26.433]
[1721947340260,14.478,172.68,172.62,6.1583]
[1721947340465,5.7924,172.64,172.62,6.1583]
[1721947341561,5.7927,172.63,172.59,20.2789]
[1721947341749,5.7939,172.6,172.58,21.7028]
[1721947341937,5.7934,172.61,172.58,21.7028]
[1721947342768,5.7929,172.63,172.58,21.7028]
[1721947342960,5.7924,172.64,172.59,5.7938]
[1721947344669,45.0,172.67,172.58,21.7028]
[1721947345055,14.4807,172.65,172.58,21.7028]
[1721947345364,5.7931,172.62,172.58,21.7028]
[1721947345565,5.7931,172.62,172.59,1.15862237]
[1721947345765,5.7931,172.62,172.58,21.7028]
[1721947348072,5.7936,172.61,172.58,21.7028]
[1721947348237,380.5,172.64,172.58,27.4971]
[1721947348443,386.2924,172.64,172.59,6.95239951]
[1721947348638,5.7917,172.67,172.62,5.793]
[1721947349458,5.7918,172.66,172.62,5.793]
[1721947349860,5.7918,172.66,172.61,20.2763]
[1721947350578,5.7918,172.66,172.62,5.793]
[1721947350882,14.4752,172.71,172.63,6.95095376]
[1721947351081,5.7911,172.68,172.63,6.95095376]
[1721947351375,14.4729,172.74,172.65,22.4663]
[1721947351545,5.7904,172.7,172.66,1.15817936]
[1721947351751,14.4729,172.74,172.66,15.63747936]
[1721947352364,5.79,172.71,172.66,21.42907936]
[1721947352564,14.4729,172.74,172.66,21.42907936]
[1721947352770,14.4729,172.74,172.66,20.2709]
[1721947353076,14.4729,172.74,172.67,1.15806796]
[1721947353253,5.7901,172.71,172.68,1.15803765]
[1721947354163,5.7904,172.7,172.68,1.15803765]
[1721947354350,5.79,172.72,172.67,6.94914863]
[1721947354548,5.7894,172.73,172.68,6.9489318]
[1721947355054,37.00825822,172.81,172.68,14.477]
[1721947355247,5.7894,172.73,172.68,20.2679]
[1721947355446,6.01531567,172.8,172.69,21.8296]
[1721947355669,23.28,172.84,172.74,5.789]
[1721947355859,386.51751207,172.85,172.77,6.1775]
[1721947356061,5.7869,172.81,172.77,6.1775]
[1721947356268,5.787,172.8,172.77,6.1775]
[1721947356457,14.4639,172.85,172.77,6.1775]
[1721947356658,14.4639,172.85,172.77,7.33493055]
[1721947356659,5.7871,172.8,172.77,7.33493055]
[1721947356860,5.7877,172.78,172.77,6.1775]
[1721947357959,14.4674,172.81,172.73,6.1775]
[1721947358168,5.789,172.74,172.73,6.1775]
[1721947358372,45.0,172.8,172.73,6.1775]
[1721947358373,5.7889,172.75,172.73,6.1775]
[1721947359856,5.7884,172.76,172.73,6.1775]
[1721947360057,5.7887,172.75,172.73,6.1775]
[1721947360775,5.7891,172.74,172.7,5.7902]
[1721947360950,5.7891,172.74,172.7,6.94807017]
[1721947361575,5.7887,172.75,172.7,6.94807017]
[1721947361971,5.7887,172.75,172.7,5.7902]
[1721947362680,5.788,172.77,172.72,5.7896]
[1721947363076,5.7883,172.76,172.72,5.7896]
[1721947363579,5.7881,172.77,172.72,5.7896]
[1721947363778,5.7877,172.78,172.73,5.7893]
[1721947364470,5.7874,172.79,172.74,6.94640115]
[1721947364665,5.787,172.8,172.75,5.7885]
[1721947364884,5.787,172.8,172.76,23.61876004]
[1721947365184,5.7868,172.81,172.76,22.4613]
[1721947365371,14.4637,172.85,172.76,28.2496]
[1721947365888,20.0,172.84,172.76,28.2496]
[1721947366066,5.787,172.8,172.76,22.4613]
[1721947366774,5.7874,172.79,172.76,22.4613]
[1721947373271,5.7879,172.78,172.76,22.4613]
[1721947373672,14.4659,172.82,172.72,36.4254]
[1721947373891,14.4684,172.8,172.72,21.9512]
[1721947374087,20.0,172.79,172.72,21.9512]
[1721947374277,5.7901,172.71,172.67,27.7425]
[1721947374473,5.7898,172.72,172.67,27.7425]
[1721947375198,5.7898,172.72,172.68,5.791]
[1721947376576,5.7898,172.72,172.67,21.9512]
[1721947376577,5.7902,172.71,172.67,21.9512]
[1721947377504,5.7897,172.72,172.67,27.7423]
[1721947377708,5.7902,172.71,172.67,27.7423]
[1721947377880,5.7905,172.7,172.67,21.9512]
[1721947378075,5.7905,172.7,172.67,15.9336]
[1721947378499,14.4714,172.76,172.67,15.9336]
[1721947378500,14.4732,172.74,172.67,15.9336]
[1721947378703,5.7907,172.69,172.67,15.9336]
[1721947379203,5.7907,172.69,172.64,5.7923]
[1721947381809,5.7904,172.7,172.66,5.7916]
[1721947382011,5.7898,172.72,172.67,5.7913]
[1721947382887,5.7898,172.72,172.68,1.15805766]
[1721947383703,5.7901,172.71,172.66,5.7916]
[1721947383905,14.4705,172.77,172.66,5.7916]
[1721947384082,37.7505,172.77,172.66,5.7916]
[1721947384279,65.0,172.76,172.66,5.7916]
[1721947384700,5.79,172.71,172.66,5.7916]